Cogmind - Beta 13 @@@ ROGUE MODE // 2024.04.21 @ 12:54:27 Player: Cheeriohz Result: Destroyed by 8R-AWN with 8R-AWN's Boregun Performance ------------- Evolutions (1) 500 Regions Visited (5) 1000 Robots Destroyed (73) 365 Value Destroyed (1515) 1515 Prototype IDs (27) 540 Alien Tech Used (0) 0 Bonus (461) 461 TOTAL SCORE: 4381 Bonus ------- High Alert Combat Kills 57 Follower Combat Kills 104 Aligned with FarCom 300 Cogmind --------- Core Integrity 0/400 Matter 27/300 Energy 280/280 System Corruption 0% Temperature Cool (0) Movement Treading (165) Location -9/Exiles Parts ------- > --- POWER (1) -------- Cooled Ion Engine > --- PROPULSION (3) --- Improved Treads Armored Treads > --- UTILITY (3) ------ Salvage Targeting Computer > --- WEAPON (2) ------- Assault Rifle > --- INVENTORY (5) ---- Cooled Ion Engine Rocket Launcher Peak State ------------ > --- POWER ------------ Cooled Ion Engine > --- PROPULSION ------- Armored Treads Armored Treads Armored Treads > --- UTILITY ---------- Huge Storage Unit Salvage Targeting Computer Improved Light Armor Plating > --- WEAPON ----------- Assault Rifle Advanced EMP Blaster > --- INVENTORY -------- Cooled Ion Engine Cooled Ion Engine Light Treads Light Treads Light Treads Armored Treads Improved Heat Sink Cooling System Cooling System High-capacity Storage Unit High-capacity Matter Pod Structural Scanner Improved Terrain Scanner Improved Terrain Scan Processor Seismic Detector Hardened Medium Armor Plating Hacking Suite High-powered Tractor Beam Improved Trap Extractor Assault Rifle Assault Rifle Heavy Assault Rifle Improved Light Cannon Rocket Launcher Flail [Rating: 28] Favorites ----------- Power Cooled Ion Engine Engine Cooled Ion Engine Propulsion Armored Treads Treads Armored Treads Leg Aluminum Leg Wheel Wheel Utility Improved Light Armor Plating Device Seismic Detector Storage Huge Storage Unit Processor Salvage Targeting Computer Protection Improved Light Armor Plating Weapon Assault Rifle Energy Gun Medium Laser Energy Cannon EM Pulse Cannon Ballistic Gun Assault Rifle Ballistic Cannon Improved Light Cannon Launcher Rocket Launcher Impact Weapon Flail Build | -11 -10 -10 -9 -9 -9 ------- Run | Yrd Mat Min Mat Min Exi Slots Evolved 2 | . . . 2 . . Power . | . . . . . . Propulsion 1 | . . . 1 . . Utility 1 | . . . 1 . . Weapon . | . . . . . . Parts Attached 76 | 5 22 14 20 3 12 Power 9 | . 4 2 2 . 1 Engine 9 | . 4 2 2 . 1 Core . | . . . . . . Reactor . | . . . . . . Propulsion 23 | 2 8 5 5 . 3 Treads 12 | . 3 2 4 . 3 Leg . | . . . . . . Wheel 11 | 2 5 3 1 . . Hover . | . . . . . . Flight . | . . . . . . Utility 17 | 2 4 3 7 . 1 Device 7 | 2 1 2 2 . . Storage 4 | . 2 . 2 . . Processor 1 | . . . 1 . . Hackware . | . . . . . . Protection 5 | . 1 1 2 . 1 Artifact . | . . . . . . Weapon 27 | 1 6 4 6 3 7 Energy Gun . | . . . . . . Energy Cannon 1 | . . 1 . . . Ballistic Gun 21 | 1 6 3 3 2 6 Ballistic Cannon 1 | . . . 1 . . Launcher 3 | . . . 1 1 1 Special Weapon . | . . . . . . Impact Weapon 1 | . . . 1 . . Slashing Weapon . | . . . . . . Piercing Weapon . | . . . . . . Special Melee Weapon . | . . . . . . Unidentified Prototypes 2 | . . . 2 . . Parts Lost 17 | . 3 4 . . 10 Power . | . . . . . . Propulsion 6 | . 2 . . . 4 Utility 5 | . 1 2 . . 2 Weapon 6 | . . 2 . . 4 Highest Loss Streak 8 | . 3 3 . . 8 To Critical Strikes 9 | . . 1 . . 8 Average Slot Usage (%) 98 | . 99 98 99 100 97 Engine 12 | . 14 13 10 11 10 Treads 19 | . . 1 27 33 32 Wheel 11 | . 27 26 5 . . Device 3 | . 7 6 2 . . Storage 10 | . 14 14 11 11 3 Processor 6 | . . . 8 11 11 Protection 10 | . 6 6 11 11 16 Energy Cannon 1 | . . . 3 . . Ballistic Gun 22 | . 28 26 16 21 21 Naked Turns . | . . . . . . Heaviest Build 138 | 12 90 58 138 96 96 Greatest Support 66 | 20 20 20 63 63 66 Greatest Overweight (x) 8 | 1 8 2 4 1 1 Average Overweight (x) 1 | . 2 2 . 1 . Largest Inventory Capacity 25 | 8 25 20 25 25 25 Average Capacity 19 | 8 21 20 23 25 12 Most Carried 25 | 8 20 20 25 25 25 Average Carried 18 | 6 18 19 23 25 10 Final Capacity 25 | 8 20 20 25 25 5 Final Carried 25 | 8 20 20 25 25 2 Class Distribution -------------------- 93% | Mutant 6% | Scavenger-Mutant Dominant Class ---------------- Mutant | -10/Materials Mutant | -10/Mines Mutant | -9/Materials Mutant | -9/Mines Mutant | -9/Exiles Resources | -11 -10 -10 -9 -9 -9 ----------- Run | Yrd Mat Min Mat Min Exi Matter Collected 2194 | 317 811 265 501 80 220 Remotely 54 | . . . 54 . . Salvage Created 2438 | 165 700 373 1073 116 11 Parts 185 | 15 58 22 77 13 . Haulers Intercepted 8 | . 2 . 6 . . Recyclers Shooed . | . . . . . . Parts Field Recycled . | . . . . . . Retrieved Matter . | . . . . . . Parts Self-Destructed . | . . . . . . Prevented . | . . . . . . Kills | -11 -10 -10 -9 -9 -9 ------- Run | Yrd Mat Min Mat Min Exi Combat Hostiles Destroyed 55 | . 19 6 21 5 4 Guns 37 | . 19 6 9 3 . Cannons 11 | . . . 11 . . AOE 7 | . . . 1 2 4 Classes Destroyed 9 | 2 5 1 . . 1 Worker 5 | . 2 1 1 1 . Tunneler 5 | 5 . . . . . Hauler 8 | . 2 . 6 . . Recycler 2 | 1 . 1 . . . Operator 2 | . 1 . 1 . . Swarmer 20 | . 9 . 8 3 . Grunt 22 | . 10 4 6 2 . Sentry 9 | . . 2 7 . . Assembled 4 | . . . . . 4 Best Kill Streak 6 | 2 4 3 6 3 2 Combat Bots Only 6 | . 3 2 6 2 2 Max Kills in Single Turn 2 | 1 2 1 2 2 1 Gunslinging . | . . . . . . Exploded 1 | . . . 1 1 1 Melee . | . . . . . . Uniques/NPCs Destroyed . | . . . . . . Combat | -11 -10 -10 -9 -9 -9 -------- Run | Yrd Mat Min Mat Min Exi Hostile Shots Fired 371 | . 101 53 75 10 132 Missed 87 | . 25 8 19 4 31 Damage Taken 3817 | . 712 675 713 43 1674 Core 579 | . 96 82 155 13 233 Absorbed by Shields . | . . . . . . Core Remaining (%) 64 | 100 . 28 . . . Volleys Fired 258 | 22 73 29 60 7 67 Largest 2 | 2 2 2 2 2 2 Hottest 83 | 70 40 40 83 43 46 Shots Fired 489 | 44 146 53 117 12 117 Gun 438 | 44 146 53 77 10 108 Cannon 40 | . . . 40 . . Launcher 11 | . . . . 2 9 Special . | . . . . . . Kinetic 445 | 37 146 53 91 10 108 Thermal 7 | 7 . . . . . Explosive 11 | . . . . 2 9 Electromagnetic 26 | . . . 26 . . Robot Hit Streak 40 | 7 10 14 38 40 11 Robot Miss Streak 5 | 5 5 1 3 2 5 Penetration Max . | . . . . . . Secondary Targets 1 | . . 1 . . . Max Gunslinging Chain 1 | . . 1 . . . Shots Hit Robots 330 | 26 85 41 90 7 81 Core Hits 125 | 8 36 13 39 6 23 Critical Kills 2 | . . 1 . 1 . Critical Parts Destroyed 2 | . 2 . . . . Critical Strikes 10 | 3 2 1 2 1 1 Burn 3 | 3 . . . . . Destroy 5 | . 2 1 . 1 1 Blast 1 | . . . 1 . . Corrupt 1 | . . . 1 . . Melee Attacks 2 | . . . 2 . . Impact 2 | . . . 2 . . Slashing . | . . . . . . Piercing . | . . . . . . Sneak Attacks . | . . . . . . Combat Hostiles . | . . . . . . Follow-up Attacks . | . . . . . . Damage Inflicted 5417 | 264 1116 597 1602 284 1554 Guns 3970 | 264 1116 597 801 77 1115 Cannons 771 | . . . 771 . . Explosions 676 | . . . 30 207 439 Melee . | . . . . . . Ramming . | . . . . . . Kinetic 4157 | 200 1116 597 1052 77 1115 Thermal 94 | 64 . . 30 . . Explosive 646 | . . . . 207 439 Electromagnetic 520 | . . . 520 . . Impact . | . . . . . . Slashing . | . . . . . . Piercing . | . . . . . . Highest Corruption . | . . . . . . Average Corruption . | . . . . . . Corruption Purged . | . . . . . . Corruption Blocked . | . . . . . . Overload Shots . | . . . . . . Overflow Damage 32 | . . . . 32 . Projectiles . | . . . . . . Explosions 32 | . . . . 32 . Melee . | . . . . . . Knockbacks . | . . . . . . Impact . | . . . . . . Kinetic . | . . . . . . Secondary . | . . . . . . Self-Inflicted Damage 20 | . . . 6 . 14 Shots 2 | . . . 1 . 1 Rammed . | . . . . . . Targets Rammed . | . . . . . . Kicked . | . . . . . . Crushed . | . . . . . . Highest Temperature 126 | 80 2 56 126 . . Average Temperature 32 | 34 2 24 39 . . Received Heat Transfer 750 | . 234 324 192 . . Siege Activations . | . . . . . . Robots Corrupted . | . . . . . . Combat Hostiles . | . . . . . . Parts Fried 3 | . . . 3 . . Impact Corruptions . | . . . . . . Robots Melted . | . . . . . . Combat Hostiles . | . . . . . . Parts Melted 1 | 1 . . . . . Heat Transferred 407 | 407 . . . . . Parts Sabotaged . | . . . . . . Parts Stolen . | . . . . . . Parts Stripped . | . . . . . . Power Chain Reactions 1 | . . . 1 . . Alert | -11 -10 -10 -9 -9 -9 ------- Run | Yrd Mat Min Mat Min Exi Peak Influence 472 | 30 320 155 472 243 . Initial 154 | . 19 60 . 154 . Average 207 | 15 181 51 333 145 . Maximum Alert Level 2 | . 1 . 2 1 . Low Security (%) 54 | 100 59 100 15 87 . Level 1 32 | . 40 . 49 12 . Level 2 13 | . . . 34 . . Level 3 . | . . . . . . Level 4 . | . . . . . . Level 5 . | . . . . . . High Security . | . . . . . . Max Security . | . . . . . . Squads Dispatched 9 | . 5 . 4 . . Investigation 5 | . 3 . 2 . . Extermination . | . . . . . . Reinforcement 4 | . 2 . 2 . . Assault . | . . . . . . Garrison . | . . . . . . Intercept . | . . . . . . Searches Triggered . | . . . . . . Construction Impeded . | . . . . . . Haulers Reinforced . | . . . . . . Active Scanning Responses . | . . . . . . Cargo Convoy Interrupts . | . . . . . . Stealth | -11 -10 -10 -9 -9 -9 --------- Run | Yrd Mat Min Mat Min Exi Distress Signals 6 | . 3 . 3 . . Communications Jammed . | . . . . . . Distress Signals . | . . . . . . Times Spotted 104 | . 39 6 44 8 7 Peak Tracking Total 9 | . 5 2 6 4 9 Tactical Retreats 8 | . 5 . 1 2 . Traps | -11 -10 -10 -9 -9 -9 ------- Run | Yrd Mat Min Mat Min Exi Traps Triggered 4 | . 2 1 1 . . Indirectly . | . . . . . . Trap Hack Attempts . | . . . . . . Triggered . | . . . . . . Disarmed . | . . . . . . Reprogrammed . | . . . . . . Reused . | . . . . . . Traps Extracted . | . . . . . . Installed . | . . . . . . Triggered . | . . . . . . Machines | -11 -10 -10 -9 -9 -9 ---------- Run | Yrd Mat Min Mat Min Exi Machines Disabled 7 | . . . 1 . 6 Max in Single Turn 3 | . . . 1 . 3 Machines Repaired . | . . . . . . Machines Dismantled . | . . . . . . Machines Sabotaged . | . . . . . . Overloaded Fab Kills . | . . . . . . Hacking | -11 -10 -10 -9 -9 -9 --------- Run | Yrd Mat Min Mat Min Exi Machines Accessed 18 | . 7 1 7 1 2 Terminals 14 | . 6 . 7 1 . Fabricators . | . . . . . . Repair Stations . | . . . . . . Recycling Units 1 | . 1 . . . . Scanalyzers . | . . . . . . Garrison Access . | . . . . . . Total Hacks 44 | . 20 1 18 3 2 Successful 21 | . 10 1 7 1 2 Failed 23 | . 10 . 11 2 . Catastrophic 3 | . 1 . 2 . . Database Lockouts . | . . . . . . Manual 24 | . 11 . 12 . 1 Terminals 40 | . 19 . 18 3 . Fabricators . | . . . . . . Repair Stations . | . . . . . . Recycling Units 1 | . 1 . . . . Scanalyzers . | . . . . . . Garrison Access . | . . . . . . Terminal Hacks 18 | . 9 1 5 1 2 Record 1 | . . . . . 1 Robot Analysis 6 | . 6 . . . . Prototype ID Bank 1 | . 1 . . . . Open Door 1 | . . 1 . . . Branch Access Points 1 | . . . 1 . . Terminal Index 1 | . . . 1 . . Alert Level 1 | . . . 1 . . Unreport Threat 1 | . 1 . . . . Locate Traps 2 | . 1 . 1 . . Registered Components 1 | . . . 1 . . Zone Layout 1 | . . . . 1 . Derelict Proto ID Bank 1 | . . . . . 1 Fabricator Hacks . | . . . . . . Repair Station Hacks . | . . . . . . Recycling Unit Hacks . | . . . . . . Scanalyzer . | . . . . . . Garrison Access Hacks . | . . . . . . Unauthorized Hacks 3 | . 1 . 2 . . Terminals 2 | . . . 2 . . Botnet 2 | . . . 2 . . Fabricators . | . . . . . . Repair Stations . | . . . . . . Recycling Units 1 | . 1 . . . . Tunnel 1 | . 1 . . . . Scanalyzers . | . . . . . . Garrison Access . | . . . . . . Data Cores Recovered . | . . . . . . Used . | . . . . . . Hacking Detections 14 | . 6 . 7 1 . Full Trace Events . | . . . . . . Feedback Events . | . . . . . . Feedback Blocked . | . . . . . . Robot Schematics Acquired . | . . . . . . Robots Built . | . . . . . . Authchips . | . . . . . . Time . | . . . . . . Total Robot Build Rating . | . . . . . . Part Schematics Acquired . | . . . . . . Parts Built . | . . . . . . Authchips . | . . . . . . Time . | . . . . . . Total Part Build Rating . | . . . . . . Parts Repaired . | . . . . . . Time . | . . . . . . Parts Recycled . | . . . . . . Recycled Matter . | . . . . . . Retrieved Matter . | . . . . . . Retrieved Components . | . . . . . . Parts Scanalyzed . | . . . . . . Part Schematics Acquired . | . . . . . . Parts Damaged . | . . . . . . Bothacking | -11 -10 -10 -9 -9 -9 ------------ Run | Yrd Mat Min Mat Min Exi Used RIF Installer . | . . . . . . Robots Hacked . | . . . . . . Non-combat . | . . . . . . Combat . | . . . . . . Robot Hacks Applied . | . . . . . . Relay Couplers Released . | . . . . . . Fabnet Peak Effective % . | . . . . . . Robots Rewired . | . . . . . . Allies Hacked . | . . . . . . Hacks Repelled . | . . . . . . Allies | -11 -10 -10 -9 -9 -9 -------- Run | Yrd Mat Min Mat Min Exi Total Allies 3 | . . 3 . . . Largest Group 3 | . . 3 3 . . Highest-Rated Group 40 | . . 40 40 . . Highest-Rated Ally 16 | . . 16 16 . . Total Orders . | . . . . . . Ally Attacks 22 | . . . 22 . . Total Damage 234 | . . . 234 . . Kills 7 | . . . 7 . . Allies Corrupted . | . . . . . . Allies Melted . | . . . . . . Intel | -11 -10 -10 -9 -9 -9 ------- Run | Yrd Mat Min Mat Min Exi Robot Analysis Total 6 | . 6 . . . . Derelict Logs Recovered 4 | . . 2 . 2 . Drone Launches . | . . . . . . Drone Recoveries . | . . . . . . Exploration | -11 -10 -10 -9 -9 -9 ------------- Run | Yrd Mat Min Mat Min Exi Turns Passed 6853 | 166 1642 918 2036 581 1510 Spaces Moved 3535 | 101 1019 663 871 215 666 Core . | . . . . . . Treads 1486 | . . . 605 215 666 Legs 26 | 26 . . . . . Wheels 2023 | 75 1019 663 266 . . Hover . | . . . . . . Flight . | . . . . . . Fastest Speed 80 | 80 80 110 95 246 163 Average Speed 157 | 91 119 110 199 246 191 Slowest Speed 330 | 120 200 110 330 246 246 Overloaded Moves . | . . . . . . Propulsion Burnouts . | . . . . . . Robots Hopped . | . . . . . . Cave-ins Triggered . | . . . . . . Exploration Rate (%) 64 | 5 90 97 85 50 62 Regions Visited 5 Branch Regions 3 Pre-discovered Areas 5 | . 1 1 . 2 1 Known Exits Taken 2 | . . 1 1 . . Unknown Exits Taken 3 | 1 1 . . 1 . Scrap Searched 3 | . . 1 . 2 . Spaces Dug 2 | . . . 2 . . Terrain Destroyed 81 | . . . 9 25 47 Melee 2 | . . . 2 . . Projectile . | . . . . . . AOE 79 | . . . 7 25 47 Terrain Rammed . | . . . . . . Walls Destroyed . | . . . . . . Machines Disabled . | . . . . . . Actions | -11 -10 -10 -9 -9 -9 --------- Run | Yrd Mat Min Mat Min Exi Total 4357 | 137 1315 800 1060 255 790 Wait 336 | 2 161 77 60 30 6 Move 3530 | 100 1018 662 870 214 666 Hop . | . . . . . . Pick Up 67 | 3 19 7 22 . 16 Fast Attach 24 | 3 3 4 7 1 6 Attach 14 | . 2 4 3 . 5 Detach 11 | 1 2 2 3 . 3 Swap 38 | 2 17 6 10 2 1 Drop 77 | 4 20 9 23 1 20 Fire 258 | 22 73 29 60 7 67 Melee 2 | . . . 2 . . Ram . | . . . . . . Kick . | . . . . . . Crush . | . . . . . . Escape Stasis . | . . . . . . Rewire . | . . . . . . Trap . | . . . . . . Miscellaneous . | . . . . . . Route ------- -11/Scrapyard -10/Materials (discovered 4 exits: *Mat x3 / *Min) -10/Mines (discovered 2 exits: *Mat x2) -9/Materials (discovered 5 exits: [*Mat x3] / *Min x2) -9/Mines (discovered 3 exits: [*Mat x2] / *Exi) -9/Exiles (discovered 1 exit: [*Min]) History --------- Turn | Location | Event 1 | -11/Scrapyard | Discovered new exit (range 3) 167 | -11/Scrapyard | Entered Materials 597 | -10/Materials | Discovered new exit (range 15) 610 | -10/Materials | Build established: Mutant 759 | -10/Materials | Lost 3 parts (2n1u) 882 | -10/Materials | Discovered new exit (range 9) 1316 | -10/Materials | Discovered new exit (range 16) 1344 | -10/Materials | Discovered new exit (range 16) 1809 | -10/Materials | Entered Mines 1822 | -10/Mines | Core integrity fell below 50% 1902 | -10/Mines | Identified exit to Materials 1990 | -10/Mines | Discovered exit to Materials (range 11) 2214 | -10/Mines | Received a Rocket Launcher from a helpful Derelict 2565 | -10/Mines | Lost 3 parts (1u2w) 2640 | -10/Mines | Met a Derelict who couldn't figure out how to use a Trap Extractor 2719 | -10/Mines | Assisted by bots powering up and referring to "LRC-V3" 2722 | -10/Mines | Learned location of Mines (-9) 2727 | -10/Mines | Entered Materials 2727 | -9/Materials | Accompanied by 3 allies 2727 | -9/Materials | Evolved 2 slots: Propulsion x1, Utility x1 2891 | -9/Materials | Discovered new exit (range 10) 2969 | -9/Materials | Discovered new exit (range 7) 3029 | -9/Materials | Build established: Scavenger-Mutant 3161 | -9/Materials | Discovered new exit (range 12) 3337 | -9/Materials | Build established: Mutant 3798 | -9/Materials | Discovered new exit (range 15) 4004 | -9/Materials | Identified exit to Mines 4159 | -9/Materials | Discovered new exit (range 15) 4763 | -9/Materials | Entered Mines 4836 | -9/Mines | Discovered new exit (range 10) 4957 | -9/Mines | Discovered new exit (range 5) 5064 | -9/Mines | Learned location of Storage (-8) 5334 | -9/Mines | Deemed a non-threat by the Exiles lab entrance 5334 | -9/Mines | Discovered new exit (range 5) 5344 | -9/Mines | Entered Exiles 5404 | -9/Exiles | Met 8R-AWN 5448 | -9/Exiles | Met EX-HEX 5546 | -9/Exiles | Met EX-BIN 5581 | -9/Exiles | Aligned with FarCom system 5583 | -9/Exiles | Given EX-Vault access code 5640 | -9/Exiles | Opened EX-Vault 5701 | -9/Exiles | Warned to stay clear of 0b10 Research branches 5770 | -9/Exiles | Met EX-DEC 5782 | -9/Exiles | Learned location of Zion (-6) 5861 | -9/Exiles | Discovered new exit (range 11) 6587 | -9/Exiles | Attacked by the Exiles 6705 | -9/Exiles | Core integrity fell below 50% 6807 | -9/Exiles | Lost 8 parts (3n2u3w) 6821 | -9/Exiles | Core integrity fell below 20% 6854 | -9/Exiles | Destroyed by 8R-AWN with 8R-AWN's Boregun Last Messages --------------- 06832_ HV Slug penetrates Earth. 06837_ Penetrated by HV Slug. 06837_ HV Slug penetrates Earth. 06837_ Penetrated by HV Slug. 06837_ HV Slug penetrates Earth. 06841_ Penetrated by HV Slug. 06841_ HV Slug penetrates Earth. 06841_ Penetrated by HV Slug. 06841_ Critical hit (Destroy). 06841_ Imp. Treads destroyed. 06841_ HV Slug penetrates Earth. 06845_ Penetrated by HV Slug. 06845_ HV Slug penetrates Earth. 06845_ Penetrated by HV Slug. 06845_ HV Slug penetrates Earth. 06849_ Penetrated by HV Slug. 06849_ Critical hit (Destroy). 06849_ Assault Rifle destroyed. 06849_ HV Slug penetrates Earth. 06854_ Penetrated by HV Slug. Map ----- +----------------------------------------------------+ | ?????????????????????????????????????????????????? | | ?????????????????????????????????????????????????? | | ?????????#####???????????????????????????????????? | | ????????## ##??????????????????????????????????? | | ????????# #??????????????????????????????????? | | ????????# < #??????????????????????????????????? | | ????????# ###????????????????????????????????? | | ????????# #????????????????????????????????? | | ????????# !! #?????????????????????????????????? | | ????????## !!! #?????????????????????????????????? | | ?????????#! ! ##????????????????????????????????? | | ?????????##!!!/ #????????????#######?????????????? | | ??????????#!] #######??????# "#?????????????? | | ??????????# #""##?##### "#?????????????? | | ??????????## #?# ## "#?????????????? | | ???????????##" ## ""#????????????## | | ???????????#"" # "#???????????? | | ???????????#### "#????????????" | | ??????????????## # ###????????????" | | ???????????????#"## # #???????????"" | | ???????????????####### ##??????????"" | | ?????????????????????## ##????????? | | ???????????????########" # ????????" | | ?????????????### !!""" " ????????# | | ?????????????# ;! * !g # # ####???### | | ???????????????#! = @ # # ""#####X# | | ???????????????#! ][ #;# | | ???????????# ; ! # #??# | | ???????????# ;##;;;;### #???# | | ????????? #?# #??# #????## # | | ?????????##???# #???# #??????##### | | ?????????????# ?????# #??????????## | | ????????????# ??????# #???????????## | | ???????????# ##???????# #????????????##" | | ?????????? #?????????? ??????????????#""" | | ???????????##???????????? ??????????????#" | | ????????????????????????? ?????????????#"" | | ????????????????????????? ?????????????#""" | | ?????????????????????????#?????????????""" | | ???????????????????????????????????????""" | | ????????????????????????????????????????" | | ????????????????????????????????????????"" | | ???????????????????????????????????????"" | | ????????????????????????????????????????"" | | ?????????????????????????????????????????""" | | ?????????????????????????????????????????? | | ???????????????????????????????????????????? | | ?????????????????????????????????????????????????? | | ?????????????????????????????????????????????????? | | ?????????????????????????????????????????????????? | +----------------------------------------------------+ Best States ------------- Heat Dissipation 42 Energy Generation 14 Energy Capacity 280 Matter Stores 300 Matter Capacity 300 Sight Range 16 Terrain Scan Density 10 Armor Coverage 375 Evasion (%) 55 Recoil Reduction 3 Salvage Targeting 1 Trap Extractor Capacity 6 Item Schematics ----------------- None Robot Schematics ------------------ None Fabricated ------------ Nothing Alien Tech Used ----------------- None Achievements -------------- None Challenges ------------ None Game ------ Seed AlphaBladeAccelerator Manual? 0 Play Time 00:48:44 Cumulative 144.6 hours Start 2024.04.21 @ 11:56:39 End 2024.04.21 @ 12:54:27 Sessions 1 Manual Loads 0 Difficulty Rogue Special Mode None Game No. 129 Rogue 129 Adventurer 0 Explorer 0 Win Type - Total 3 Types 2/0/0/1/0/0/0/0/0 Lore% 55 Gallery% 72 Achievement% 55 Wizard Run 0 Options --------- Layout 2 ASCII 0 Keyboard 1 Movement Numpad Keybinds 0 Fullscreen 1 Font 32/SmallcapsGlow Map View 77x44 Zoom Use 0% Tactical HUD 1 Map Filters NONE Filters NONE Steam 1 RUN: 46fb0375-615e-4baf-98f7-0bc179b01c72